bitfinex/quotes_BTCUSD_20240607
["timestamp","ask_amount","ask_price","bid_price","bid_amount"]
[1717799178563,1.25956942,69384.0,69383.0,0.014946]
[1717799178764,1.05956942,69384.0,69383.0,0.014946]
[1717799179891,1.05957395,69384.0,69383.0,0.014946]
[1717799180075,1.25957395,69384.0,69383.0,0.014946]
[1717799180484,1.35957395,69384.0,69383.0,0.014946]
[1717799180893,1.78912597,69384.0,69383.0,0.014946]
[1717799181288,2.05157775,69384.0,69383.0,0.014946]
[1717799181514,1.98947775,69384.0,69383.0,0.014946]
[1717799181864,2.04657775,69384.0,69383.0,0.000946]
[1717799182068,2.05857775,69384.0,69383.0,0.009946]
[1717799182315,2.04657775,69384.0,69383.0,0.008946]
[1717799182529,2.04657775,69384.0,69383.0,0.000946]
[1717799182680,2.05857775,69384.0,69383.0,0.001946]
[1717799183293,3.48826399,69384.0,69383.0,0.001946]
[1717799183502,3.71130242,69384.0,69383.0,0.007946]
[1717799183657,4.30761769,69384.0,69383.0,0.007946]
[1717799183863,4.14330954,69384.0,69383.0,0.007946]
[1717799184270,4.28743454,69384.0,69383.0,0.007946]
[1717799184736,4.28025775,69384.0,69383.0,0.000946]
[1717799184947,4.29425775,69384.0,69383.0,0.000946]
[1717799185154,4.24838237,69384.0,69383.0,0.001946]
[1717799185353,4.46094957,69384.0,69383.0,0.001946]
[1717799185594,4.47194957,69384.0,69383.0,0.000946]
[1717799186082,4.47494957,69384.0,69383.0,0.001946]
[1717799186246,4.12805413,69384.0,69383.0,0.001946]
[1717799186450,4.15161724,69384.0,69383.0,0.001946]
[1717799191299,4.05956481,69384.0,69383.0,0.001946]
[1717799194373,4.05960029,69384.0,69383.0,0.001946]
[1717799194584,4.06537229,69384.0,69383.0,0.001946]
[1717799195121,4.02240728,69384.0,69383.0,0.001946]
[1717799195468,4.02627842,69384.0,69383.0,0.001946]
[1717799197629,3.97064538,69384.0,69383.0,0.001946]
[1717799197833,4.02068785,69384.0,69383.0,0.001946]
[1717799198247,3.46733759,69384.0,69383.0,0.001946]
[1717799199072,3.46735816,69384.0,69383.0,0.001946]
[1717799199700,4.04332096,69384.0,69383.0,0.001946]
[1717799200499,3.51032317,69384.0,69383.0,0.001946]
[1717799200650,3.51017753,69384.0,69383.0,0.001946]
[1717799202220,3.46721252,69384.0,69383.0,0.001946]
[1717799203482,3.55816082,69384.0,69383.0,0.001946]
[1717799203869,3.55816156,69384.0,69383.0,0.001946]
[1717799205886,3.8082038,69384.0,69383.0,0.001946]
[1717799207537,3.80820356,69384.0,69383.0,0.001946]
[1717799208760,4.34072071,69384.0,69383.0,0.001946]
[1717799208955,4.37678852,69384.0,69383.0,0.001946]
[1717799211488,4.37525519,69384.0,69383.0,0.001946]
[1717799212276,0.5582974,69381.0,69380.0,0.000946]
[1717799212454,1.95261028,69381.0,69380.0,0.000946]
[1717799212655,2.06980356,69381.0,69380.0,0.000946]
[1717799213060,2.42474075,69381.0,69380.0,0.000946]
[1717799213246,4.65661975,69381.0,69380.0,0.000946]
[1717799213629,4.69268756,69381.0,69380.0,0.000946]
[1717799214149,4.69468756,69381.0,69380.0,0.001946]
[1717799214358,4.84433157,69381.0,69380.0,0.001946]
[1717799214851,5.26225465,69381.0,69380.0,0.001946]
[1717799215380,5.12292535,69381.0,69380.0,0.001946]
[1717799215591,5.26242284,69381.0,69380.0,0.001946]
[1717799216610,5.08023684,69381.0,69380.0,0.001946]
[1717799216807,4.71927877,69381.0,69380.0,0.001946]
[1717799217209,4.65773477,69381.0,69380.0,0.001946]
[1717799217532,4.49863477,69381.0,69380.0,0.001946]
[1717799217695,4.42009413,69381.0,69380.0,0.001946]
[1717799217897,4.4474221,69381.0,69380.0,0.001946]
[1717799218803,4.40445709,69381.0,69380.0,0.001946]
[1717799219007,4.22078628,69381.0,69380.0,0.001946]
[1717799221871,3.98892628,69381.0,69380.0,0.001946]
[1717799222483,4.52565965,69381.0,69380.0,0.001946]
[1717799225212,4.45070649,69381.0,69380.0,0.001946]
[1717799225424,4.52552409,69381.0,69380.0,0.001946]
[1717799225632,4.56058162,69381.0,69380.0,0.001946]
[1717799226539,4.4216313,69381.0,69380.0,0.001946]
[1717799226748,4.56050578,69381.0,69380.0,0.001946]
[1717799227059,4.56096189,69381.0,69380.0,0.001946]
[1717799227683,4.1971785,69381.0,69380.0,0.001946]
[1717799227886,4.56096189,69381.0,69380.0,0.001946]
[1717799228195,4.42163155,69381.0,69380.0,0.001946]
[1717799228413,4.5605681,69381.0,69380.0,0.001946]
[1717799228817,4.56056785,69381.0,69380.0,0.001946]
[1717799230539,4.60167468,69381.0,69380.0,0.001946]
[1717799230753,4.60167468,69381.0,69380.0,0.080646]
[1717799233212,4.60128967,69381.0,69380.0,0.080646]
[1717799234116,4.60128967,69381.0,69380.0,0.239446]
[1717799234331,5.08543496,69381.0,69380.0,0.239446]
[1717799234449,3.87128371,69381.0,69380.0,0.239446]
[1717799234818,4.61946414,69381.0,69380.0,0.239446]
[1717799235538,4.83243837,69381.0,69380.0,0.239446]
[1717799236302,4.07803037,69381.0,69380.0,0.239446]
[1717799236779,2.92480231,69381.0,69380.0,0.239446]
[1717799236987,2.37645731,69381.0,69380.0,0.239446]
[1717799237195,1.72994318,69381.0,69380.0,0.239446]
[1717799237412,0.88698079,69381.0,69380.0,0.239446]
[1717799237699,0.47084893,69381.0,69380.0,0.239446]
[1717799237978,0.42158414,69381.0,69380.0,0.239446]
[1717799238201,0.40758414,69381.0,69380.0,0.239446]
[1717799238636,0.42158414,69381.0,69380.0,0.239446]
[1717799238855,0.41941067,69381.0,69380.0,0.238446]
[1717799239058,0.50541067,69381.0,69380.0,0.238446]
[1717799239211,0.63504394,69381.0,69380.0,0.238446]
[1717799239414,0.63604378,69381.0,69380.0,0.238446]
[1717799239643,0.63602224,69381.0,69380.0,0.238446]
[1717799240021,0.53602224,69381.0,69380.0,0.382579]
[1717799240219,0.40639151,69381.0,69380.0,0.39097141]
[1717799240848,0.41039151,69381.0,69380.0,0.382579]
[1717799241195,0.43103315,69381.0,69380.0,0.39097141]
[1717799241374,0.35168355,69381.0,69380.0,0.39097141]
[1717799241578,0.36450432,69381.0,69380.0,0.382579]
[1717799242002,0.57244596,69381.0,69380.0,0.382579]
[1717799242144,0.30353428,69381.0,69380.0,0.382579]
[1717799242348,0.30153428,69381.0,69380.0,0.382579]
[1717799242559,0.30353428,69381.0,69380.0,0.39097141]
[1717799242936,0.30353428,69381.0,69380.0,0.40497141]
[1717799243207,0.20639048,69381.0,69380.0,0.396579]
[1717799243494,0.20639048,69381.0,69380.0,0.40497141]
[1717799244104,0.20639048,69381.0,69380.0,0.39097141]
[1717799244258,0.27109634,69381.0,69380.0,0.39097141]
[1717799244460,0.27109634,69381.0,69380.0,0.40497141]
[1717799246011,0.27109634,69381.0,69380.0,0.396579]
[1717799246235,0.20639048,69381.0,69380.0,0.396579]
[1717799246437,0.20639048,69381.0,69380.0,0.40497141]
[1717799246862,0.20639048,69381.0,69380.0,0.396579]
[1717799247274,0.24950394,69381.0,69380.0,0.396579]
[1717799247662,0.24950394,69381.0,69380.0,0.40497141]
[1717799248411,0.24950394,69381.0,69380.0,0.396579]
[1717799249039,0.24950394,69381.0,69380.0,0.40497141]
[1717799249413,0.20638509,69381.0,69380.0,0.40497141]
[1717799250439,0.20638509,69381.0,69380.0,0.396579]
[1717799250586,0.20638509,69381.0,69380.0,0.40497141]
[1717799251856,0.20638509,69381.0,69380.0,0.396579]
[1717799252926,0.17679305,69381.0,69380.0,0.396579]
[1717799253119,0.20646801,69381.0,69380.0,0.396579]
[1717799260092,0.21728936,69381.0,69380.0,0.396579]
[1717799260303,0.20646801,69381.0,69380.0,0.396579]
[1717799261273,0.50565878,69381.0,69380.0,0.396579]
[1717799261475,0.57029133,69381.0,69380.0,0.396579]
[1717799265166,0.73379261,69381.0,69380.0,0.014946]
[1717799265377,0.80589261,69381.0,69380.0,0.014946]
[1717799266374,0.72217771,69381.0,69380.0,0.000946]
[1717799267180,0.72217771,69381.0,69380.0,0.010946]
[1717799267387,0.72218954,69381.0,69380.0,0.010946]
[1717799268147,0.72018954,69381.0,69380.0,0.010946]
[1717799268677,0.65808954,69381.0,69380.0,0.153246]
[1717799268882,0.64808954,69381.0,69380.0,0.153246]
[1717799269130,0.76312697,69381.0,69380.0,0.163246]
[1717799269400,0.51367061,69381.0,69380.0,0.245946]
[1717799270003,0.62145788,69381.0,69380.0,0.245946]
[1717799270205,0.51367061,69381.0,69380.0,0.245946]
[1717799272675,0.51453061,69381.0,69380.0,0.245946]
[1717799272902,0.62234929,69381.0,69380.0,0.245946]
[1717799273308,0.62234312,69381.0,69380.0,0.245946]
[1717799274437,0.51452444,69381.0,69380.0,0.245946]
[1717799276233,0.43972573,69381.0,69380.0,0.245946]
[1717799276714,0.51452452,69381.0,69380.0,0.245946]
[1717799276897,0.5145306,69381.0,69380.0,0.245946]
[1717799279470,0.5245306,69381.0,69380.0,0.245946]
[1717799280128,0.61622503,69381.0,69380.0,0.010946]
[1717799280337,0.5145306,69381.0,69380.0,0.010946]
[1717799280534,0.5866306,69381.0,69380.0,0.010946]
[1717799280694,0.5766306,69381.0,69380.0,0.010946]
[1717799281548,0.5866306,69381.0,69380.0,0.010946]
[1717799281919,0.5766306,69381.0,69380.0,0.010946]
[1717799283031,0.57663121,69381.0,69380.0,0.010946]
[1717799283815,0.57663373,69381.0,69380.0,0.010946]
[1717799285257,0.50183433,69381.0,69380.0,0.010946]
[1717799285453,0.57663373,69381.0,69380.0,0.010946]
[1717799287536,0.58663373,69381.0,69380.0,0.010946]
[1717799287708,0.57663373,69381.0,69380.0,0.010946]
[1717799287925,0.58663373,69381.0,69380.0,0.010946]
[1717799288449,0.58663373,69381.0,69380.0,0.012446]
[1717799289194,0.57663373,69381.0,69380.0,0.012446]
[1717799291398,0.57646026,69381.0,69380.0,0.012446]
[1717799292387,0.57646017,69381.0,69380.0,0.012446]
[1717799293460,0.51436017,69381.0,69380.0,0.246646]
[1717799293664,0.51436017,69381.0,69380.0,0.25503841]
[1717799293862,0.51435964,69381.0,69380.0,0.25503841]
[1717799294085,0.51435964,69381.0,69380.0,0.246646]
[1717799294302,0.51435964,69381.0,69380.0,0.25503841]
[1717799294507,0.51435964,69381.0,69380.0,0.246646]
[1717799295259,0.51435964,69381.0,69380.0,0.39917141]
[1717799295465,0.51435964,69381.0,69380.0,0.390779]
[1717799296033,0.51435964,69381.0,69380.0,0.39917141]
[1717799297016,0.51435964,69381.0,69380.0,0.390779]
[1717799299334,0.51435489,69381.0,69380.0,0.390779]
[1717799307130,0.51435481,69381.0,69380.0,0.390779]
[1717799307863,0.43956086,69381.0,69380.0,0.390779]
[1717799308254,0.51435481,69381.0,69380.0,0.390779]
[1717799309999,0.51434996,69381.0,69380.0,0.39917141]
[1717799310188,0.51434996,69381.0,69380.0,0.54874961]
[1717799310189,0.62242837,69381.0,69380.0,0.54874961]
[1717799310394,0.52260184,69381.0,69380.0,0.54874961]
[1717799310528,0.21259604,69381.0,69380.0,0.63384961]
[1717799310744,0.11532406,69381.0,69380.0,0.63384961]
[1717799310952,0.15854721,69381.0,69380.0,0.63384961]
[1717799311471,0.15854721,69381.0,69380.0,0.62384961]
[1717799311909,0.15854721,69381.0,69380.0,0.63384961]
[1717799312089,0.14854721,69381.0,69380.0,0.63384961]
[1717799312269,0.14854721,69381.0,69380.0,0.57174961]
[1717799312470,0.14854721,69381.0,69380.0,0.56174961]
[1717799312671,0.14854721,69381.0,69380.0,0.57574961]
[1717799312971,0.10532406,69381.0,69380.0,0.57574961]
[1717799313177,0.14852663,69381.0,69380.0,0.57574961]
[1717799313377,0.10532406,69381.0,69380.0,0.57574961]
[1717799314453,0.14852578,69381.0,69380.0,0.57574961]
[1717799314852,0.10532406,69381.0,69380.0,0.57574961]
[1717799316374,0.14852628,69381.0,69380.0,0.57574961]
[1717799316741,0.14851736,69381.0,69380.0,0.57574961]
[1717799317437,0.10532406,69381.0,69380.0,0.57574961]
[1717799320600,0.14851206,69381.0,69380.0,0.66215177]
[1717799320836,0.10532406,69381.0,69380.0,0.57574961]
[1717799321477,0.11883424,69381.0,69380.0,0.57574961]
[1717799321689,0.14854862,69381.0,69380.0,0.57574961]
[1717799321897,0.07375952,69381.0,69380.0,0.57574961]
[1717799322108,0.10535943,69381.0,69380.0,0.57574961]
[1717799322305,0.14854457,69381.0,69380.0,0.57574961]
[1717799322954,0.10535943,69381.0,69380.0,0.57574961]
[1717799324499,0.10535943,69381.0,69380.0,0.5673572]
[1717799324500,0.14854114,69381.0,69380.0,0.5673572]
[1717799324946,0.10535943,69381.0,69380.0,0.183579]
[1717799325153,0.10535943,69381.0,69380.0,0.160579]
[1717799325371,0.4045233,69381.0,69380.0,0.160579]
[1717799326369,0.4045233,69381.0,69380.0,0.183579]
[1717799329931,0.49090508,69381.0,69380.0,0.183579]
[1717799330739,0.49090508,69381.0,69380.0,0.19197141]
[1717799330930,0.49090508,69381.0,69380.0,0.183579]
[1717799331463,0.4045233,69381.0,69380.0,0.183579]
[1717799332630,0.10535943,69381.0,69380.0,0.183579]
[1717799333072,0.40452522,69381.0,69380.0,0.183579]
[1717799333447,0.40452522,69381.0,69380.0,0.19197141]
[1717799333664,0.40452522,69381.0,69380.0,0.183579]
[1717799333865,0.40452522,69381.0,69380.0,0.19197141]
[1717799334318,0.40452522,69381.0,69380.0,0.183579]
[1717799335589,0.40453108,69381.0,69380.0,0.183579]
[1717799336219,0.40453108,69381.0,69380.0,0.33316052]
[1717799338196,0.51249393,69381.0,69380.0,0.33316052]
[1717799339095,0.58809393,69381.0,69380.0,0.31016052]
[1717799339304,0.58815939,69381.0,69380.0,0.31016052]
[1717799339717,0.51255939,69381.0,69380.0,0.31016052]
[1717799340299,0.51255953,69381.0,69380.0,0.31016052]
[1717799341310,0.51257378,69381.0,69380.0,0.31016144]
[1717799343254,0.64133139,69381.0,69380.0,0.160579]
[1717799344421,0.77080879,69381.0,69380.0,0.160579]
[1717799345289,0.77082787,69381.0,69380.0,0.160579]
[1717799346278,0.64115792,69381.0,69380.0,0.160579]
[1717799346755,0.3295667,69381.0,69380.0,0.160579]
[1717799346873,0.40436308,69381.0,69380.0,0.160579]
[1717799349145,0.40436308,69381.0,69380.0,0.16897141]
[1717799352097,0.40436308,69381.0,69380.0,0.42267141]
[1717799352311,0.40436308,69381.0,69380.0,0.57225712]
[1717799352312,0.51240315,69381.0,69380.0,0.57225712]
[1717799353266,0.51240315,69381.0,69380.0,0.63435712]
[1717799353474,0.51240315,69381.0,69380.0,0.69879283]
[1717799353682,0.51240315,69381.0,69380.0,0.70879283]
[1717799353891,0.41518294,69381.0,69380.0,0.69879283]
[1717799354722,0.41518294,69381.0,69380.0,0.63435712]
[1717799355022,0.40436308,69381.0,69380.0,0.63435712]
[1717799355204,0.41518298,69381.0,69380.0,0.63435712]
[1717799358181,0.11601719,69381.0,69380.0,0.63435712]
[1717799358312,0.10519729,69381.0,69380.0,0.63435712]
[1717799358716,0.11601719,69381.0,69380.0,0.63435712]
[1717799358941,0.10519729,69381.0,69380.0,0.63435712]
[1717799359798,0.10518749,69381.0,69380.0,0.63434458]
[1717799363749,0.20244287,69381.0,69380.0,0.63434458]
[1717799363951,0.50159635,69381.0,69380.0,0.63434458]
[1717799364371,0.20244287,69381.0,69380.0,0.63434458]
[1717799365040,0.4151602,69381.0,69380.0,0.63434777]
[1717799365272,0.50160642,69381.0,69380.0,0.63434777]
[1717799365503,0.19163371,69381.0,69380.0,0.63434777]
[1717799366742,0.10518749,69381.0,69380.0,1.14146848]
[1717799367139,0.07547311,69381.0,69380.0,1.14146848]
[1717799367939,0.07547311,69381.0,69380.0,1.0770337]
[1717799372577,0.07647311,69381.0,69380.0,1.0670337]
[1717799372978,0.07646567,69381.0,69380.0,1.0810337]
[1717799373488,0.07646567,69381.0,69380.0,1.0670337]
[1717799373899,0.07646567,69381.0,69380.0,1.0810337]
[1717799374547,0.07646567,69381.0,69380.0,1.19299724]
[1717799374909,0.07646567,69381.0,69380.0,1.19297917]
[1717799375309,0.07646567,69381.0,69380.0,1.08101563]
[1717799379567,0.07646567,69381.0,69380.0,1.0810153]
[1717799380423,0.07646567,69381.0,69380.0,1.0189153]
[1717799380593,0.07646567,69381.0,69380.0,1.0810153]
[1717799383437,0.0764656,69381.0,69380.0,1.0810153]
[1717799384431,0.0764656,69381.0,69380.0,1.19297622]
[1717799384795,0.0764656,69381.0,69380.0,1.0810153]
[1717799385651,0.0764656,69381.0,69380.0,1.3692823]
[1717799389547,0.0764656,69381.0,69380.0,1.39087986]
[1717799389759,0.0764656,69381.0,69380.0,1.3692823]
[1717799394505,0.0764656,69381.0,69380.0,1.21972434]
[1717799394677,0.0764656,69381.0,69380.0,1.36927171]
[1717799394897,0.07646021,69381.0,69380.0,1.51438958]
[1717799395297,0.07646021,69381.0,69380.0,1.73673416]
[1717799397995,0.07646021,69381.0,69380.0,1.73670679]
[1717799402875,0.07646021,69381.0,69380.0,1.59158892]
[1717799403802,0.07646021,69381.0,69380.0,1.52948892]
[1717799404124,0.07646021,69381.0,69380.0,1.35088892]
[1717799404612,0.07646021,69381.0,69380.0,1.12857171]
[1717799405038,0.07646021,69381.0,69380.0,1.35088892]
[1717799405247,0.07646021,69381.0,69380.0,1.12857171]
[1717799405454,0.07646021,69381.0,69380.0,1.06647171]
[1717799405676,0.07646021,69381.0,69380.0,1.35088892]
[1717799405882,0.07646021,69381.0,69380.0,1.12857171]
[1717799406258,0.07646021,69381.0,69380.0,1.35088892]
[1717799406912,0.07646021,69381.0,69380.0,1.28878892]
[1717799407120,0.07646021,69381.0,69380.0,1.35082776]
[1717799407905,0.07646021,69381.0,69380.0,1.28872776]
[1717799408328,0.07646021,69381.0,69380.0,1.12851055]
[1717799409016,0.07646021,69381.0,69380.0,0.77814355]
[1717799409225,0.31216021,69381.0,69380.0,0.77814355]
[1717799409439,0.35535319,69381.0,69380.0,0.77816011]
[1717799409855,0.31216021,69381.0,69380.0,0.77816011]
[1717799410261,0.37694968,69381.0,69380.0,0.77816011]
[1717799410463,0.31216021,69381.0,69380.0,0.77816011]
[1717799410677,0.31217216,69381.0,69380.0,0.77816744]
[1717799411403,0.3770025,69381.0,69380.0,0.77816744]
[1717799411635,0.31217216,69381.0,69380.0,0.77816744]
[1717799412261,0.3770025,69381.0,69380.0,0.77816744]
[1717799412688,0.3770025,69381.0,69380.0,0.77816755]
[1717799413090,0.31217216,69381.0,69380.0,0.77816755]
[1717799413296,0.3770025,69381.0,69380.0,0.77816755]
[1717799413508,0.31217216,69381.0,69380.0,0.77816755]
[1717799414554,0.31217216,69381.0,69380.0,0.84026755]
[1717799414758,0.35539321,69381.0,69380.0,0.84026755]
[1717799416787,0.35538865,69381.0,69380.0,0.84026755]
[1717799416986,0.19548865,69381.0,69380.0,0.84026755]
[1717799417288,0.15227013,69381.0,69380.0,0.84026755]
[1717799417734,0.18196948,69381.0,69380.0,0.84026755]
[1717799418486,0.10616948,69381.0,69380.0,0.84026755]
[1717799418674,0.10616948,69381.0,69380.0,0.85026755]
[1717799418887,0.10616948,69381.0,69380.0,0.84026755]
[1717799421440,0.10616948,69381.0,69380.0,0.93156755]
[1717799422039,0.10616948,69381.0,69380.0,0.86946755]
[1717799422218,0.10616948,69381.0,69380.0,0.93156755]
[1717799422421,0.10616948,69381.0,69380.0,0.86946755]
[1717799422629,0.10616948,69381.0,69380.0,0.92156755]
[1717799424128,0.10616526,69381.0,69380.0,0.92156755]
[1717799425761,0.10616561,69381.0,69380.0,0.77815565]
[1717799425977,0.10616561,69381.0,69380.0,0.84025565]
[1717799426183,0.18196561,69381.0,69380.0,0.84025565]
[1717799426866,0.18196659,69381.0,69380.0,0.77815565]
[1717799427079,0.18196659,69381.0,69380.0,0.84025565]
[1717799432209,0.18196659,69381.0,69380.0,0.77815565]
[1717799432348,0.18196659,69381.0,69380.0,0.84025565]
[1717799433810,0.18196659,69381.0,69380.0,0.77815565]
[1717799434018,0.18196659,69381.0,69380.0,0.84025565]
[1717799437449,0.10616659,69381.0,69380.0,0.84025565]
[1717799439483,0.10616659,69381.0,69380.0,0.84025773]
[1717799440001,0.10616659,69381.0,69380.0,0.84025893]
[1717799441112,0.26426659,69381.0,69380.0,0.63374]
[1717799444214,0.30748418,69381.0,69380.0,0.63374]
[1717799445247,0.26426659,69381.0,69380.0,0.63374]
[1717799446285,0.2642696,69381.0,69380.0,0.63374]
[1717799451281,0.32909598,69381.0,69380.0,0.63374]
[1717799452305,0.46602143,69381.0,69380.0,0.33708059]
[1717799452549,0.49844963,69381.0,69380.0,0.33708059]
[1717799452754,0.70034094,69381.0,69380.0,0.33708059]
[1717799452978,0.82227418,69381.0,69380.0,0.18751784]
[1717799453193,0.82227418,69381.0,69380.0,0.17351784]
[1717799453605,0.82127418,69381.0,69380.0,0.18351784]
[1717799453854,0.82228489,69381.0,69380.0,0.18751784]
[1717799454239,0.83228481,69381.0,69380.0,0.16051784]
[1717799454686,0.82228481,69381.0,69380.0,0.16051784]
[1717799454911,0.96201733,69381.0,69380.0,0.16051784]
[1717799455116,0.83228481,69381.0,69380.0,0.16051784]
[1717799455565,0.82328481,69381.0,69380.0,0.15051784]
[1717799456023,0.62655722,69381.0,69380.0,0.16451784]
[1717799456194,0.81868159,69381.0,69380.0,0.16451784]
[1717799456821,0.81668159,69381.0,69380.0,0.16051784]
[1717799457057,0.82668159,69381.0,69380.0,0.14651784]
[1717799457200,0.82668159,69381.0,69380.0,0.14851784]
[1717799457405,0.82668159,69381.0,69380.0,0.16251784]
[1717799458298,0.75545614,69381.0,69380.0,0.16251784]
[1717799459342,0.86345171,69381.0,69380.0,0.16251784]
[1717799459515,0.86345171,69381.0,69380.0,0.17091025]
[1717799459717,0.86347424,69381.0,69380.0,0.16251784]
[1717799459998,0.75547867,69381.0,69380.0,0.16251784]
[1717799460328,0.75547867,69381.0,69380.0,0.17091025]
[1717799460531,0.75547867,69381.0,69380.0,0.19391025]
[1717799460532,0.52167867,69381.0,69380.0,0.19391025]
[1717799460751,0.22251025,69381.0,69380.0,0.19391025]
[1717799460945,0.10518221,69381.0,69380.0,0.19391025]
[1717799461816,0.28614948,69381.0,69380.0,0.19391025]
[1717799462002,0.2213576,69381.0,69380.0,0.19391025]
[1717799462250,0.10518221,69381.0,69380.0,0.19391025]
[1717799462456,0.28564279,69381.0,69380.0,0.19391025]
[1717799464547,0.28564279,69381.0,69380.0,0.33832918]
[1717799464752,0.22085152,69381.0,69380.0,0.93669618]
[1717799464958,0.10518221,69381.0,69380.0,0.93669618]
[1717799465444,0.03038588,69381.0,69380.0,0.93669618]
[1717799465650,0.00068653,69381.0,69380.0,0.92069618]
[1717799465863,0.00068653,69381.0,69380.0,0.93469618]
[1717799466070,0.00068653,69381.0,69380.0,0.93669618]
[1717799466289,0.00068653,69381.0,69380.0,1.0295458]
[1717799466701,0.00168653,69381.0,69380.0,1.0475458]
[1717799468289,0.00168653,69381.0,69380.0,0.93869618]
[1717799469729,0.00168653,69381.0,69380.0,1.22696318]
[1717799471594,0.00168653,69381.0,69380.0,1.35939751]
[1717799475071,0.00168653,69381.0,69380.0,1.51119751]
[1717799476178,0.04157084,69395.0,69394.0,0.15249641]
[1717799476400,0.04157084,69395.0,69394.0,0.31991534]
[1717799476633,0.0756311,69395.0,69394.0,0.31991534]
[1717799477040,0.10533754,69395.0,69394.0,0.41225907]
[1717799477696,0.10533886,69395.0,69394.0,0.41225907]
[1717799478659,0.10533886,69395.0,69394.0,0.31991534]
[1717799479093,0.10633886,69395.0,69394.0,0.34091534]
[1717799480799,0.03156644,69395.0,69394.0,0.34091534]
[1717799481009,0.10633839,69395.0,69394.0,0.34091534]
[1717799484239,0.10633815,69395.0,69394.0,0.34091534]
[1717799485901,0.10639952,69395.0,69394.0,0.34091534]
[1717799488556,0.10639925,69395.0,69394.0,0.34091534]
[1717799494242,0.11721685,69395.0,69394.0,0.49045652]
[1717799494471,0.10639925,69395.0,69394.0,0.49045652]
[1717799494670,0.10639925,69395.0,69394.0,0.58367172]
[1717799495300,0.11721685,69395.0,69394.0,0.81857172]
[1717799495505,0.41629844,69395.0,69394.0,0.81857172]
[1717799495929,0.41629844,69395.0,69394.0,0.81951772]
[1717799496330,0.41629844,69395.0,69394.0,0.72630252]
[1717799497285,0.41629812,69395.0,69394.0,0.72630252]
[1717799499160,0.41629812,69395.0,69394.0,0.56740252]
[1717799502953,0.33070926,69395.0,69394.0,0.56740252]
[1717799503208,0.41629655,69395.0,69394.0,0.56740252]
[1717799503959,0.33070926,69395.0,69394.0,0.41786134]
[1717799504164,0.41629655,69395.0,69394.0,0.56740113]
[1717799505222,0.45945346,69395.0,69394.0,0.56740113]
[1717799506797,0.44863606,69395.0,69394.0,0.56740113]
[1717799507036,0.40547915,69395.0,69394.0,0.56740113]
[1717799507236,0.44863606,69395.0,69394.0,0.56740113]
[1717799507635,0.14955479,69395.0,69394.0,0.56740113]
[1717799507892,0.0747849,69395.0,69394.0,0.56740113]
[1717799508103,0.14955416,69395.0,69394.0,0.56740113]
[1717799508232,0.10639725,69395.0,69394.0,0.56740113]
[1717799508436,0.40547656,69395.0,69394.0,0.56740113]
[1717799509259,0.47021193,69395.0,69394.0,0.56740113]
[1717799510066,0.40547656,69395.0,69394.0,0.56740113]
[1717799510504,0.40547656,69395.0,69394.0,0.41786134]
[1717799510738,0.40547656,69395.0,69394.0,0.56740036]
[1717799512116,0.41718407,69395.0,69394.0,0.56739955]
[1717799512316,0.4054764,69395.0,69394.0,0.56739955]
[1717799513284,0.49195317,69395.0,69394.0,0.56739955]
[1717799515737,0.49129706,69395.0,69394.0,0.56739955]
[1717799516774,0.10574098,69395.0,69394.0,1.13927805]
[1717799516984,0.10574098,69395.0,69394.0,1.42748705]
[1717799517336,0.07603454,69395.0,69394.0,1.42748705]
[1717799517974,0.07603454,69395.0,69394.0,1.42747269]
[1717799518421,0.07603454,69395.0,69394.0,1.42047269]
[1717799518422,0.07503454,69395.0,69394.0,1.42047269]
[1717799518639,0.07503454,69395.0,69394.0,1.57927269]
[1717799519061,0.07503454,69395.0,69394.0,1.57227269]
[1717799519278,0.07503454,69395.0,69394.0,1.58627269]
[1717799519522,0.07503454,69395.0,69394.0,1.57227269]
[1717799519739,0.07503454,69395.0,69394.0,1.58627269]
[1717799520153,0.07503454,69395.0,69394.0,1.57227269]
[1717799520356,0.07503454,69395.0,69394.0,1.57226691]
[1717799520514,0.07503454,69395.0,69394.0,1.58626691]
[1717799521546,0.07503454,69395.0,69394.0,1.64836691]
[1717799527279,4.4e-07,69396.0,69395.0,1.09070441]
[1717799527482,4.4e-07,69396.0,69395.0,1.62736222]
[1717799527692,4.4e-07,69396.0,69395.0,1.77688029]
[1717799528672,4.4e-07,69396.0,69395.0,1.79088029]
[1717799528871,4.4e-07,69396.0,69395.0,1.80488029]
[1717799529775,4.4e-07,69396.0,69395.0,1.82644933]
[1717799530184,4.4e-07,69396.0,69395.0,1.80488029]
[1717799531440,4.4e-07,69396.0,69395.0,1.65536222]
[1717799531650,4.4e-07,69396.0,69395.0,1.80486816]
[1717799531854,4.4e-07,69396.0,69395.0,1.92643801]
[1717799532259,4.4e-07,69396.0,69395.0,1.90486816]
[1717799532410,4.4e-07,69396.0,69395.0,1.92643801]
[1717799532623,4.4e-07,69396.0,69395.0,1.89843801]
[1717799532823,4.4e-07,69396.0,69395.0,1.92643801]
[1717799533228,4.4e-07,69396.0,69395.0,1.89086816]
[1717799533429,4.4e-07,69396.0,69395.0,1.87686816]
[1717799533639,4.4e-07,69396.0,69395.0,1.92643801]
[1717799533816,4.4e-07,69396.0,69395.0,1.72643801]
[1717799534214,4.4e-07,69396.0,69395.0,1.67853801]
[1717799534414,4.4e-07,69396.0,69395.0,1.20262928]
[1717799534630,4.4e-07,69396.0,69395.0,1.05082928]
[1717799534994,0.07476424,69396.0,69395.0,1.05082928]
[1717799535572,0.07476424,69396.0,69395.0,1.12292928]
[1717799536412,0.07476424,69396.0,69395.0,1.14592928]
[1717799537417,0.07476424,69396.0,69395.0,1.08382928]
[1717799537623,0.07476424,69396.0,69395.0,1.14592928]
[1717799538028,0.07476424,69396.0,69395.0,1.07382928]
[1717799538226,0.07476424,69396.0,69395.0,1.13592928]
[1717799539454,0.07476424,69396.0,69395.0,1.14592928]
[1717799540726,4.4e-07,69396.0,69395.0,1.14592928]
[1717799540898,0.07475982,69396.0,69395.0,1.14592928]
[1717799541111,4.4e-07,69396.0,69395.0,1.14592928]
[1717799541533,0.07475961,69396.0,69395.0,1.14592928]
[1717799541879,0.07475915,69396.0,69395.0,1.14592928]
[1717799542080,0.07475915,69396.0,69395.0,1.44264715]
[1717799542289,4.4e-07,69396.0,69395.0,1.67004715]
[1717799542720,4.4e-07,69396.0,69395.0,1.67005683]
[1717799543128,0.07475891,69396.0,69395.0,1.67005683]
[1717799543529,4.4e-07,69396.0,69395.0,1.67005683]
[1717799543951,4.4e-07,69396.0,69395.0,1.67005703]
[1717799544124,0.07475858,69396.0,69395.0,1.67005703]
[1717799544551,4.4e-07,69396.0,69395.0,1.67005703]
[1717799544771,0.07475817,69396.0,69395.0,1.67005703]
[1717799545205,0.07475841,69396.0,69395.0,1.67005703]
[1717799545804,4.4e-07,69396.0,69395.0,1.67005703]
[1717799547184,4.4e-07,69396.0,69395.0,1.52054121]
[1717799550226,4.4e-07,69396.0,69395.0,1.45844121]
[1717799550429,0.07475685,69396.0,69395.0,1.52054121]